[Event "11th LCC Super Blitz 2019"]
[Site "London"]
[Date "2019.12.08"]
[Round "5.4"]
[White "Gudenas, Motiejus"]
[Black "Stepanyan, Henrik"]
[Result "0-1"]
[ECO "C40"]
[WhiteElo "1993"]
[BlackElo "2193"]
[Annotator "NA"]
[PlyCount "103"]
[EventDate "2019.12.08"]
[EventType "swiss"]
[EventCountry "ENG"]
[SourceTitle "playchess.com"]
[Source "ChessBase"]
[SourceQuality "1"]
[TimeControl "180+2"]

1. e4 {[%emt 0:00:00]} e5 {[%emt 0:00:00]} 2. Nf3 {[%emt 0:00:00]} d5 {[%emt 0:00:00]} 3. exd5 {[%emt 0:00:09]} e4 {[%emt 0:00:00]} 4. Qe2 {[%emt 0:00:04]} Nf6 {[%emt 0:00:02]} 5. Nc3 {[%emt 0:00:14]} Be7 {[%emt 0:00:01]} 6. Nxe4 {[%emt 0:00:05]} Nxd5 {[%emt 0:00:04]} 7. d4 {[%emt 0:00:18]} O-O {[%emt 0:00:03]} 8. Be3 {[%emt 0:00:12]} f5 {[%emt 0:00:06]} 9. Nc3 {[%emt 0:00:06]} Nxc3 {[%emt 0:00:02]} 10. bxc3 {[%emt 0:00:04]} f4 {[%emt 0:00:02]} 11. Bd2 {[%emt 0:00:07]} Bd6 {[%emt 0:00:11]} 12. Qc4+ {[%emt 0:00:07]} Kh8 {[%emt 0:00:01]} 13. Be2 {[%emt 0:00:09]} b6 {[%emt 0:00:01]} 14. Qd5 {[%emt 0:00:25]} c6 {[%emt 0:00:01]} 15. Qg5 {[%emt 0:00:18]} Qe8 {[%emt 0:00:24]} 16. Ne5 {[%emt 0:00:18]} Bxe5 {[%emt 0:00:14]} 17. Qxe5 {[%emt 0:00:06]} Qf7 {[%emt 0:00:16]} 18. O-O {[%emt 0:00:09]} Nd7 {[%emt 0:00:11]} 19. Qh5 {[%emt 0:00:03]} Qf6 {[%emt 0:00:09]} 20. Bf3 {[%emt 0:00:07]} Ba6 {[%emt 0:00:36]} 21. Rfe1 {[%emt 0:00:01]} Bc4 {[%emt 0:00:02]} 22. a4 {[%emt 0:00:09]} Rad8 {[%emt 0:00:13]} 23. a5 {[%emt 0:00:08]} b5 {[%emt 0:00:01]} 24. Re4 {[%emt 0:00:08]} Qd6 {[%emt 0:00:09]} 25. Rae1 {[%emt 0:00:03]} Nf6 {[%emt 0:00:02]} 26. Qe5 {[%emt 0:00:01]} Nxe4 {[%emt 0:00:02]} 27. Rxe4 {[%emt 0:00:02]} Qxe5 {[%emt 0:00:04]} 28. Rxe5 {[%emt 0:00:03]} Rfe8 {[%emt 0:00:09]} 29. Bxf4 {[%emt 0:00:04]} Rxe5 {[%emt 0:00:04]} 30. Bxe5 {[%emt 0:00:01]} Bd5 {[%emt 0:00:05]} 31. Be2 {[%emt 0:00:04]} a6 {[%emt 0:00:07]} 32. f4 {[%emt 0:00:02]} Kg8 {[%emt 0:00:07]} 33. Kf2 {[%emt 0:00:02]} g6 {[%emt 0:00:06]} 34. g3 {[%emt 0:00:01]} Kf7 {[%emt 0:00:02]} 35. Bg4 {[%emt 0:00:02]} Be6 {[%emt 0:00:01]} 36. Bf3 {[%emt 0:00:02]} Bd5 {[%emt 0:00:05]} 37. Bg4 {[%emt 0:00:01]} h5 {[%emt 0:00:07]} 38. Bh3 {[%emt 0:00:02]} Be4 {[%emt 0:00:01]} 39. Bg2 {[%emt 0:00:06]} Bxg2 {[%emt 0:00:04]} 40. Kxg2 {[%emt 0:00:01]} Ke6 {[%emt 0:00:01]} 41. Kf3 {[%emt 0:00:04]} Kd5 {[%emt 0:00:01]} 42. Ke3 {[%emt 0:00:03]} Kc4 {[%emt 0:00:01]} 43. Kd2 {[%emt 0:00:02]} c5 {[%emt 0:00:05]} 44. Bf6 {[%emt 0:00:04]} Re8 {[%emt 0:00:08]} 45. Be5 {[%emt 0:00:01]} cxd4 {[%emt 0:00:06]} 46. cxd4 {[%emt 0:00:03]} Rc8 {[%emt 0:00:01]} 47. c3 {[%emt 0:00:03]} Kd5 {[%emt 0:00:08]} 48. Kd3 {[%emt 0:00:03]} Rc4 {[%emt 0:00:00]} 49. Bb8 {[%emt 0:00:06]} Ra4 {[%emt 0:00:02]} 50. Bc7 {[%emt 0:00:01]} Ra2 {[%emt 0:00:00]} 51. h3 {[%emt 0:00:02]} Rg2 {[%emt 0:00:02]} 52. f5 {[%emt 0:00:08]} 0-1

[Event "11th LCC Super Blitz 2019"]
[Site "London"]
[Date "2019.12.08"]
[Round "5.4"]
[White "Iyengar, Ilya"]
[Black "Roberson, Peter T"]
[Result "0-1"]
[ECO "D38"]
[WhiteElo "1984"]
[BlackElo "2282"]
[Annotator "NA"]
[PlyCount "66"]
[EventDate "2019.12.08"]
[EventType "swiss"]
[EventCountry "ENG"]
[SourceTitle "playchess.com"]
[Source "ChessBase"]
[SourceQuality "1"]
[TimeControl "180+2"]

1. d4 {[%emt 0:00:00]} Nf6 {[%emt 0:00:00]} 2. Nf3 {[%emt 0:00:01]} d5 {[%emt 0:00:00]} 3. c4 {[%emt 0:00:01]} e6 {[%emt 0:00:00]} 4. Bg5 {[%emt 0:00:03]} Bb4+ {[%emt 0:00:04]} 5. Nc3 {[%emt 0:00:04]} h6 {[%emt 0:00:05]} 6. Bxf6 {[%emt 0:00:08]} Qxf6 {[%emt 0:00:01]} 7. Qa4+ {[%emt 0:00:00]} Nc6 {[%emt 0:00:01]} 8. cxd5 {[%emt 0:00:02]} exd5 {[%emt 0:00:01]} 9. e3 {[%emt 0:00:02]} O-O {[%emt 0:00:03]} 10. Bd3 {[%emt 0:00:03]} Be6 {[%emt 0:00:02]} 11. O-O {[%emt 0:00:06]} a6 {[%emt 0:00:04]} 12. Rac1 {[%emt 0:00:09]} Bd6 {[%emt 0:00:03]} 13. Qd1 {[%emt 0:00:13]} Rae8 {[%emt 0:00:07]} 14. a3 {[%emt 0:00:08]} g5 {[%emt 0:00:05]} 15. b4 {[%emt 0:00:07]} Ne7 {[%emt 0:00:09]} 16. Na4 {[%emt 0:00:09]} Ng6 {[%emt 0:00:05]} 17. Nc5 {[%emt 0:00:03]} Bc8 {[%emt 0:00:00]} 18. e4 {[%emt 0:00:25]} dxe4 {[%emt 0:00:23]} 19. Nxe4 {[%emt 0:00:02]} Qd8 {[%emt 0:00:10]} 20. Nxd6 {[%emt 0:00:17]} Qxd6 {[%emt 0:00:01]} 21. Qb3 {[%emt 0:00:14]} Nf4 {[%emt 0:00:06]} 22. Bc4 {[%emt 0:00:08]} b5 {[%emt 0:00:07]} 23. Bd3 {[%emt 0:00:17]} Bb7 {[%emt 0:00:03]} 24. Bb1 {[%emt 0:00:14]} Bd5 {[%emt 0:00:09]} 25. Qc2 {[%emt 0:00:02]} Be4 {[%emt 0:00:09]} 26. Qxc7 {[%emt 0:00:14]} Qe6 {[%emt 0:00:32]} 27. Bxe4 {[%emt 0:00:09]} Ne2+ {[%emt 0:00:01]} 28. Kh1 {[%emt 0:00:02]} Nxc1 {[%emt 0:00:01]} 29. Bb7 {[%emt 0:00:16]} Nd3 {[%emt 0:00:05]} 30. d5 {[%emt 0:00:08]} Qe2 {[%emt 0:00:05]} 31. Kg1 {[%emt 0:00:03]} g4 {[%emt 0:00:08]} 32. Qg3 {[%emt 0:00:02]} h5 {[%emt 0:00:07]} 33. Nd4 {[%emt 0:00:05]} Qxf1+ {[%emt 0:00:05]} 0-1

[Event "11th LCC Super Blitz 2019"]
[Site "London"]
[Date "2019.12.08"]
[Round "5.4"]
[White "Joslin, Tim"]
[Black "Klingher, Dominic"]
[Result "0-1"]
[ECO "C11"]
[WhiteElo "1822"]
[BlackElo "2071"]
[Annotator "NA"]
[PlyCount "70"]
[EventDate "2019.12.08"]
[EventType "swiss"]
[EventCountry "ENG"]
[SourceTitle "playchess.com"]
[Source "ChessBase"]
[SourceQuality "1"]
[TimeControl "180+2"]

1. e4 {[%emt 0:00:00]} e6 {[%emt 0:00:00]} 2. Nf3 {[%emt 0:00:01]} d5 {[%emt 0:00:01]} 3. Nc3 {[%emt 0:00:02]} Nf6 {[%emt 0:00:01]} 4. e5 {[%emt 0:00:01]} Nfd7 {[%emt 0:00:01]} 5. d4 {[%emt 0:00:02]} c5 {[%emt 0:00:00]} 6. dxc5 {[%emt 0:00:05]} Nc6 {[%emt 0:00:01]} 7. Bf4 {[%emt 0:00:02]} Bxc5 {[%emt 0:00:02]} 8. Bd3 {[%emt 0:00:04]} f6 {[%emt 0:00:13]} 9. exf6 {[%emt 0:00:07]} Nxf6 {[%emt 0:00:02]} 10. O-O {[%emt 0:00:02]} O-O {[%emt 0:00:02]} 11. Bg5 {[%emt 0:00:05]} a6 {[%emt 0:00:16]} 12. Re1 {[%emt 0:00:25]} b5 {[%emt 0:00:03]} 13. Ne2 {[%emt 0:00:14]} Qb6 {[%emt 0:00:14]} 14. Bh4 {[%emt 0:00:10]} e5 {[%emt 0:00:08]} 15. Bxf6 {[%emt 0:00:48]} Rxf6 {[%emt 0:00:04]} 16. Bxh7+ {[%emt 0:00:12]} Kxh7 {[%emt 0:00:02]} 17. Qxd5 {[%emt 0:00:04]} Bxf2+ {[%emt 0:00:23]} 18. Kh1 {[%emt 0:00:01]} Bf5 {[%emt 0:00:51]} 19. Rf1 {[%emt 0:00:28]} Rd8 {[%emt 0:00:11]} 20. Ng5+ {[%emt 0:00:05]} Kh8 {[%emt 0:00:33]} 21. Nf7+ {[%emt 0:00:02]} Rxf7 {[%emt 0:00:03]} 22. Qxf7 {[%emt 0:00:02]} Bh7 {[%emt 0:00:14]} 23. Rxf2 {[%emt 0:00:03]} Nb4 {[%emt 0:00:12]} 24. Raf1 {[%emt 0:00:09]} Nxc2 {[%emt 0:00:04]} 25. Ng3 {[%emt 0:00:02]} Ne3 {[%emt 0:00:01]} 26. Qe7 {[%emt 0:00:11]} Nxf1 {[%emt 0:00:05]} 27. Rf8+ {[%emt 0:00:04]} Rxf8 28. Qxf8+ {[%emt 0:00:02]} Bg8 {[%emt 0:00:03]} 29. Qxf1 {[%emt 0:00:06]} Qd4 {[%emt 0:00:01]} 30. Nf5 {[%emt 0:00:05]} Qg4 {[%emt 0:00:04]} 31. h3 {[%emt 0:00:05]} Qg5 {[%emt 0:00:01]} 32. Qf3 {[%emt 0:00:09]} Bxa2 {[%emt 0:00:02]} 33. Ng3 {[%emt 0:00:04]} Bg8 {[%emt 0:00:03]} 34. Ne4 {[%emt 0:00:02]} Qc1+ {[%emt 0:00:01]} 35. Kh2 {[%emt 0:00:01]} Qh6 {[%emt 0:00:01]} 0-1

[Event "11th LCC Super Blitz 2019"]
[Site "London"]
[Date "2019.12.08"]
[Round "5.5"]
[White "Rishi, Thariani"]
[Black "Van Zyl-Rudd, Jack"]
[Result "1-0"]
[ECO "B08"]
[WhiteElo "2008"]
[BlackElo "2290"]
[Annotator "NA"]
[PlyCount "98"]
[EventDate "2019.12.08"]
[EventType "swiss"]
[EventCountry "ENG"]
[SourceTitle "playchess.com"]
[Source "ChessBase"]
[SourceQuality "1"]
[TimeControl "180+2"]

1. e4 {[%emt 0:00:52]} Nc6 {[%emt 0:00:02]} 2. Nc3 {[%emt 0:00:06]} Nf6 {[%emt 0:00:01]} 3. Nf3 {[%emt 0:00:04]} d6 {[%emt 0:00:00]} 4. d4 {[%emt 0:00:02]} g6 {[%emt 0:00:01]} 5. Bd3 {[%emt 0:00:01]} Bg7 {[%emt 0:00:01]} 6. h3 {[%emt 0:00:01]} O-O {[%emt 0:00:02]} 7. O-O {[%emt 0:00:01]} e5 {[%emt 0:00:01]} 8. Be3 {[%emt 0:00:02]} Re8 {[%emt 0:00:07]} 9. a3 {[%emt 0:00:03]} exd4 {[%emt 0:00:03]} 10. Nxd4 {[%emt 0:00:01]} Ne5 {[%emt 0:00:01]} 11. Be2 {[%emt 0:00:10]} Bd7 {[%emt 0:00:17]} 12. f4 {[%emt 0:00:06]} Nc6 {[%emt 0:00:01]} 13. Bf3 {[%emt 0:00:01]} Nxd4 {[%emt 0:00:02]} 14. Bxd4 {[%emt 0:00:01]} c5 {[%emt 0:00:18]} 15. Bxf6 {[%emt 0:00:11]} Qxf6 {[%emt 0:00:03]} 16. Nd5 {[%emt 0:00:01]} Qd4+ {[%emt 0:00:08]} 17. Kh2 {[%emt 0:00:06]} Rac8 {[%emt 0:00:03]} 18. c3 {[%emt 0:00:04]} Qxd1 {[%emt 0:00:06]} 19. Raxd1 {[%emt 0:00:01]} Bc6 {[%emt 0:00:01]} 20. Rfe1 {[%emt 0:00:07]} Kf8 {[%emt 0:00:21]} 21. g4 {[%emt 0:00:01]} b5 {[%emt 0:00:13]} 22. Rd2 {[%emt 0:00:09]} a5 {[%emt 0:00:02]} 23. Red1 {[%emt 0:00:01]} Bxd5 24. Rxd5 {[%emt 0:00:01]} b4 {[%emt 0:00:19]} 25. Rxd6 {[%emt 0:00:29]} bxa3 {[%emt 0:00:03]} 26. bxa3 {[%emt 0:00:00]} Bxc3 {[%emt 0:00:02]} 27. e5 {[%emt 0:00:06]} g5 {[%emt 0:00:03]} 28. R6d3 {[%emt 0:00:13]} Bd4 {[%emt 0:00:03]} 29. fxg5 {[%emt 0:00:27]} Rxe5 {[%emt 0:00:01]} 30. Kg3 {[%emt 0:00:01]} Rxg5 {[%emt 0:00:16]} 31. Rc1 {[%emt 0:00:01]} Rb8 {[%emt 0:00:05]} 32. Kf4 {[%emt 0:00:02]} Rg6 {[%emt 0:00:01]} 33. g5 {[%emt 0:00:01]} h6 {[%emt 0:00:03]} 34. h4 hxg5+ 35. hxg5 {[%emt 0:00:02]} Kg7 {[%emt 0:00:08]} 36. Be4 {[%emt 0:00:01]} Rgb6 {[%emt 0:00:01]} 37. Rh1 {[%emt 0:00:02]} Rh8 {[%emt 0:00:02]} 38. Rxh8 {[%emt 0:00:03]} Kxh8 {[%emt 0:00:01]} 39. Bd5 {[%emt 0:00:03]} Kg7 {[%emt 0:00:09]} 40. a4 {[%emt 0:00:06]} Rb4 {[%emt 0:00:02]} 41. Bc6 {[%emt 0:00:01]} f6 {[%emt 0:00:29]} 42. gxf6+ {[%emt 0:00:10]} Kxf6 {[%emt 0:00:01]} 43. Ke4 {[%emt 0:00:03]} Be5+ {[%emt 0:00:10]} 44. Kd5 {[%emt 0:00:03]} c4 {[%emt 0:00:10]} 45. Rf3+ {[%emt 0:00:02]} Ke7 {[%emt 0:00:13]} 46. Kxe5 {[%emt 0:00:01]} Rb2 {[%emt 0:00:11]} 47. Kd4 {[%emt 0:00:03]} Rc2 {[%emt 0:00:02]} 48. Rc3 {[%emt 0:00:02]} Rb2 {[%emt 0:00:03]} 49. Kc5 {[%emt 0:00:03]} Kd8 {[%emt 0:00:11]} 1-0

[Event "11th LCC Super Blitz 2019"]
[Site "London"]
[Date "2019.12.08"]
[Round "5.5"]
[White "Ignatovic, Ernest"]
[Black "Tanmay Chopra"]
[Result "0-1"]
[ECO "A01"]
[WhiteElo "1703"]
[BlackElo "2100"]
[Annotator "NA"]
[PlyCount "80"]
[EventDate "2019.12.08"]
[EventType "swiss"]
[EventCountry "ENG"]
[SourceTitle "playchess.com"]
[Source "ChessBase"]
[SourceQuality "1"]
[TimeControl "180+2"]

1. b3 {[%emt 0:00:00]} e5 {[%emt 0:00:00]} 2. Bb2 {[%emt 0:00:00]} Nc6 {[%emt 0:00:01]} 3. e3 {[%emt 0:00:00]} Nf6 {[%emt 0:00:01]} 4. Bb5 {[%emt 0:00:00]} Bd6 {[%emt 0:00:01]} 5. Ne2 {[%emt 0:00:05]} O-O {[%emt 0:00:04]} 6. O-O {[%emt 0:00:05]} Ne7 {[%emt 0:00:05]} 7. f4 {[%emt 0:00:39]} Ng6 {[%emt 0:00:14]} 8. f5 {[%emt 0:00:05]} Ne7 {[%emt 0:00:01]} 9. Ng3 {[%emt 0:00:04]} c6 {[%emt 0:00:07]} 10. Be2 {[%emt 0:00:03]} Bc7 {[%emt 0:00:02]} 11. e4 {[%emt 0:00:01]} d5 {[%emt 0:00:00]} 12. d3 {[%emt 0:00:01]} a5 {[%emt 0:00:20]} 13. a4 {[%emt 0:00:05]} Qd6 {[%emt 0:00:30]} 14. Nd2 {[%emt 0:00:06]} b6 {[%emt 0:00:12]} 15. Kh1 {[%emt 0:00:03]} Qd7 {[%emt 0:00:08]} 16. Nf3 {[%emt 0:00:02]} d4 {[%emt 0:00:03]} 17. Bc1 {[%emt 0:00:01]} Kh8 {[%emt 0:00:09]} 18. Bg5 {[%emt 0:00:01]} Neg8 {[%emt 0:00:01]} 19. Nh5 {[%emt 0:00:16]} Nxh5 {[%emt 0:00:02]} 20. Nxe5 {[%emt 0:00:08]} Bxe5 {[%emt 0:00:03]} 21. Bxh5 {[%emt 0:00:01]} Qd6 {[%emt 0:00:13]} 22. g3 {[%emt 0:00:09]} Nf6 {[%emt 0:00:02]} 23. Bf3 {[%emt 0:00:11]} Bd7 {[%emt 0:00:01]} 24. Bg2 {[%emt 0:00:01]} Ng8 {[%emt 0:00:07]} 25. Qf3 {[%emt 0:00:25]} f6 {[%emt 0:00:01]} 26. Bd2 {[%emt 0:00:01]} Ne7 {[%emt 0:00:13]} 27. Rf2 {[%emt 0:00:15]} Ra7 {[%emt 0:00:01]} 28. Raf1 {[%emt 0:00:01]} Rfa8 {[%emt 0:00:02]} 29. Qh5 {[%emt 0:00:04]} Be8 {[%emt 0:00:02]} 30. Qg4 {[%emt 0:00:06]} b5 {[%emt 0:00:03]} 31. axb5 {[%emt 0:00:09]} cxb5 {[%emt 0:00:01]} 32. h4 {[%emt 0:00:01]} Bf7 {[%emt 0:00:21]} 33. Bf4 {[%emt 0:00:11]} a4 {[%emt 0:00:01]} 34. h5 {[%emt 0:00:06]} h6 {[%emt 0:00:06]} 35. Bf3 {[%emt 0:00:30]} axb3 {[%emt 0:00:06]} 36. cxb3 {[%emt 0:00:01]} Ra1 {[%emt 0:00:02]} 37. Kg2 {[%emt 0:00:03]} Bxb3 {[%emt 0:00:07]} 38. Bxh6 {[%emt 0:00:12]} gxh6 {[%emt 0:00:03]} 39. Qh4 {[%emt 0:00:02]} Rxf1 {[%emt 0:00:05]} 40. Rxf1 {[%emt 0:00:02]} Rg8 {[%emt 0:00:08]} 0-1

[Event "11th LCC Super Blitz 2019"]
[Site "London"]
[Date "2019.12.08"]
[Round "5.5"]
[White "Sheikh, Anum"]
[Black "Stoyanov, Viktor"]
[Result "0-1"]
[ECO "B15"]
[WhiteElo "1560"]
[BlackElo "2191"]
[Annotator "NA"]
[PlyCount "56"]
[EventDate "2019.12.08"]
[EventType "swiss"]
[EventCountry "ENG"]
[SourceTitle "playchess.com"]
[Source "ChessBase"]
[SourceQuality "1"]
[TimeControl "180+2"]

1. e4 {[%emt 0:00:00]} g6 {[%emt 0:00:00]} 2. d4 {[%emt 0:00:01]} Bg7 {[%emt 0:00:00]} 3. Nc3 {[%emt 0:00:01]} c6 {[%emt 0:00:00]} 4. f4 {[%emt 0:00:02]} d5 {[%emt 0:00:01]} 5. e5 {[%emt 0:00:01]} Nh6 {[%emt 0:00:01]} 6. Nf3 {[%emt 0:00:03]} Bg4 {[%emt 0:00:01]} 7. h3 {[%emt 0:00:01]} Bxf3 {[%emt 0:00:01]} 8. Qxf3 {[%emt 0:00:01]} Nf5 {[%emt 0:00:01]} 9. Be3 {[%emt 0:00:14]} Nxe3 {[%emt 0:00:02]} 10. Qxe3 {[%emt 0:00:01]} h5 {[%emt 0:00:00]} 11. Bd3 {[%emt 0:00:05]} e6 {[%emt 0:00:02]} 12. g3 {[%emt 0:00:07]} Nd7 {[%emt 0:00:01]} 13. Qf2 {[%emt 0:00:31]} Qa5 {[%emt 0:00:05]} 14. a3 {[%emt 0:00:10]} Bf8 {[%emt 0:00:04]} 15. Rg1 {[%emt 0:00:17]} c5 {[%emt 0:00:02]} 16. Rg2 {[%emt 0:00:17]} a6 {[%emt 0:00:08]} 17. Kf1 {[%emt 0:00:19]} b5 {[%emt 0:00:04]} 18. dxc5 {[%emt 0:00:18]} Bxc5 {[%emt 0:00:06]} 19. Qe1 {[%emt 0:00:04]} Qb6 {[%emt 0:00:06]} 20. a4 {[%emt 0:00:15]} b4 {[%emt 0:00:02]} 21. Ne2 {[%emt 0:00:03]} Rc8 {[%emt 0:00:08]} 22. b3 {[%emt 0:00:02]} a5 {[%emt 0:00:04]} 23. Qd1 {[%emt 0:00:05]} Ke7 {[%emt 0:00:10]} 24. Rh2 {[%emt 0:00:02]} Be3 {[%emt 0:00:15]} 25. Rg2 {[%emt 0:00:04]} g5 {[%emt 0:00:11]} 26. h4 {[%emt 0:00:38]} gxh4 {[%emt 0:00:06]} 27. gxh4 {[%emt 0:00:02]} Rcg8 {[%emt 0:00:02]} 28. Ng3 {[%emt 0:00:09]} Bxf4 {[%emt 0:00:06]} 0-1

[Event "11th LCC Super Blitz 2019"]
[Site "London"]
[Date "2019.12.08"]
[Round "5.6"]
[White "Wallace, John Paul"]
[Black "Ball, Charlie J"]
[Result "1-0"]
[ECO "D45"]
[WhiteElo "2344"]
[BlackElo "1249"]
[Annotator "NA"]
[PlyCount "53"]
[EventDate "2019.12.08"]
[EventType "swiss"]
[EventCountry "ENG"]
[SourceTitle "playchess.com"]
[Source "ChessBase"]
[SourceQuality "1"]
[TimeControl "180+2"]

1. d4 {[%emt 0:00:00]} d5 {[%emt 0:00:00]} 2. c4 {[%emt 0:00:00]} e6 {[%emt 0:00:01]} 3. Nc3 {[%emt 0:00:01]} c6 {[%emt 0:00:03]} 4. e3 {[%emt 0:00:02]} Nf6 {[%emt 0:00:03]} 5. Nf3 {[%emt 0:00:01]} Nbd7 {[%emt 0:00:02]} 6. Qc2 {[%emt 0:00:01]} Bb4 {[%emt 0:00:22]} 7. a3 {[%emt 0:00:02]} Ba5 {[%emt 0:00:07]} 8. Bd3 {[%emt 0:00:05]} Bc7 {[%emt 0:00:11]} 9. O-O {[%emt 0:00:08]} h6 {[%emt 0:00:11]} 10. e4 {[%emt 0:00:01]} dxe4 {[%emt 0:00:12]} 11. Nxe4 {[%emt 0:00:02]} Nxe4 {[%emt 0:00:25]} 12. Bxe4 {[%emt 0:00:02]} g5 {[%emt 0:00:06]} 13. Be3 {[%emt 0:00:17]} Nf6 {[%emt 0:00:04]} 14. Ne5 {[%emt 0:00:06]} Bxe5 {[%emt 0:00:25]} 15. dxe5 {[%emt 0:00:03]} Nxe4 {[%emt 0:00:02]} 16. Qxe4 {[%emt 0:00:02]} h5 {[%emt 0:00:02]} 17. Rad1 {[%emt 0:00:17]} Qe7 {[%emt 0:00:01]} 18. b4 {[%emt 0:00:08]} Bd7 {[%emt 0:00:16]} 19. Bc5 {[%emt 0:00:03]} Qd8 {[%emt 0:00:05]} 20. Rd2 {[%emt 0:00:02]} Qc7 {[%emt 0:00:08]} 21. Bd6 {[%emt 0:00:04]} Qb6 {[%emt 0:00:03]} 22. Rfd1 {[%emt 0:00:24]} O-O-O {[%emt 0:00:15]} 23. Be7 {[%emt 0:00:01]} Rdg8 {[%emt 0:00:07]} 24. Rxd7 {[%emt 0:00:04]} g4 {[%emt 0:00:03]} 25. Bc5 {[%emt 0:00:08]} Qa6 {[%emt 0:00:02]} 26. Qd3 {[%emt 0:00:13]} h4 {[%emt 0:00:09]} 27. Qd6 {[%emt 0:00:02]} 1-0

[Event "11th LCC Super Blitz 2019"]
[Site "London"]
[Date "2019.12.08"]
[Round "5.6"]
[White "Ratnesan, Ranesh"]
[Black "Arapalea, Daniel-Ionel"]
[Result "1-0"]
[ECO "A57"]
[WhiteElo "2213"]
[BlackElo "1840"]
[Annotator "NA"]
[PlyCount "92"]
[EventDate "2019.12.08"]
[EventType "swiss"]
[EventCountry "ENG"]
[SourceTitle "playchess.com"]
[Source "ChessBase"]
[SourceQuality "1"]
[TimeControl "180+2"]

1. d4 {[%emt 0:00:00]} Nf6 {[%emt 0:00:00]} 2. c4 {[%emt 0:00:00]} c5 {[%emt 0:00:00]} 3. d5 {[%emt 0:00:00]} b5 {[%emt 0:00:01]} 4. a4 {[%emt 0:00:01]} b4 {[%emt 0:00:01]} 5. b3 {[%emt 0:00:01]} d6 {[%emt 0:00:01]} 6. Bb2 {[%emt 0:00:01]} g6 {[%emt 0:00:01]} 7. e4 {[%emt 0:00:01]} Bg7 {[%emt 0:00:01]} 8. Bd3 {[%emt 0:00:01]} O-O {[%emt 0:00:02]} 9. Nd2 {[%emt 0:00:02]} Nfd7 {[%emt 0:00:01]} 10. f4 {[%emt 0:00:03]} Bxb2 {[%emt 0:00:02]} 11. Ra2 {[%emt 0:00:01]} Bg7 {[%emt 0:00:02]} 12. Ngf3 {[%emt 0:00:01]} e6 {[%emt 0:00:10]} 13. O-O {[%emt 0:00:04]} exd5 {[%emt 0:00:02]} 14. exd5 {[%emt 0:00:01]} Nf6 {[%emt 0:00:02]} 15. Ng5 {[%emt 0:00:08]} Bg4 {[%emt 0:00:07]} 16. Qb1 {[%emt 0:00:03]} Nh5 {[%emt 0:00:16]} 17. h3 {[%emt 0:00:18]} Bd7 {[%emt 0:00:13]} 18. Ndf3 {[%emt 0:00:16]} Nxf4 {[%emt 0:00:08]} 19. Be4 {[%emt 0:00:12]} Nh5 {[%emt 0:00:12]} 20. Raf2 {[%emt 0:00:22]} Ng3 {[%emt 0:00:05]} 21. Re1 {[%emt 0:00:01]} Nxe4 {[%emt 0:00:08]} 22. Qxe4 {[%emt 0:00:04]} Re8 {[%emt 0:00:13]} 23. Qf4 {[%emt 0:00:10]} Rxe1+ {[%emt 0:00:07]} 24. Nxe1 {[%emt 0:00:01]} f6 {[%emt 0:00:36]} 25. Ne4 {[%emt 0:00:08]} Qe7 {[%emt 0:00:10]} 26. Nf3 {[%emt 0:00:07]} Bf5 {[%emt 0:00:30]} 27. Nxd6 {[%emt 0:00:05]} Nd7 {[%emt 0:00:05]} 28. Nxf5 {[%emt 0:00:04]} gxf5 {[%emt 0:00:00]} 29. Qxf5 {[%emt 0:00:02]} Re8 {[%emt 0:00:02]} 30. Rf1 {[%emt 0:00:01]} Ne5 {[%emt 0:00:03]} 31. Nd2 {[%emt 0:00:06]} Ng6 {[%emt 0:00:03]} 32. Nf3 {[%emt 0:00:07]} Qe3+ {[%emt 0:00:04]} 33. Kh1 {[%emt 0:00:02]} Qf4 {[%emt 0:00:07]} 34. Qd7 {[%emt 0:00:03]} Rf8 {[%emt 0:00:04]} 35. Qe6+ {[%emt 0:00:04]} Kh8 {[%emt 0:00:01]} 36. d6 {[%emt 0:00:01]} Ne5 {[%emt 0:00:07]} 37. d7 {[%emt 0:00:06]} Nxf3 {[%emt 0:00:08]} 38. Rxf3 {[%emt 0:00:02]} Qd4 {[%emt 0:00:02]} 39. Qf5 {[%emt 0:00:11]} Qa1+ {[%emt 0:00:11]} 40. Rf1 {[%emt 0:00:03]} Qd4 {[%emt 0:00:01]} 41. Rf3 {[%emt 0:00:04]} Qa1+ {[%emt 0:00:01]} 42. Rf1 {[%emt 0:00:01]} Qd4 {[%emt 0:00:01]} 43. Re1 {[%emt 0:00:23]} Qd6 {[%emt 0:00:07]} 44. Qd5 {[%emt 0:00:25]} Qc7 {[%emt 0:00:02]} 45. Re7 {[%emt 0:00:04]} Qd8 {[%emt 0:00:04]} 46. Qe6 {[%emt 0:00:05]} Bh6 {[%emt 0:00:06]} 1-0